fUSD/lending_fUSD_20240804
["ID","MTS","AMOUNT","RATE_DAILY","PERIOD"]
[334096617,1722766245624,-500.0,0.00024657,9]
[334096618,1722766245633,-500.34226869,0.00024657,9]
[334096619,1722766245643,-507.24199724,0.00024657,9]
[334096620,1722766245654,-500.0,0.00024657,9]
[334096621,1722766245665,-500.0,0.00024657,9]
[334096622,1722766245679,-500.0,0.00024657,9]
[334096623,1722766245688,-500.0,0.00024657,9]
[334096624,1722766245698,-500.0,0.00024657,9]
[334096625,1722766245708,-500.0,0.00024657,9]
[334096626,1722766245720,-500.0,0.00024657,9]
[334096627,1722766245731,-500.0,0.00024657,9]
[334096628,1722766245742,-500.0,0.00024657,9]
[334096629,1722766245753,-500.0,0.00024657,9]
[334096630,1722766245763,-512.4698348,0.00024657,9]
[334096631,1722766245775,-500.0,0.00024657,9]
[334096632,1722766245785,-500.0,0.00024657,9]
[334096633,1722766245795,-500.0,0.00024657,9]
[334096634,1722766245805,-500.0,0.00024657,9]
[334096635,1722766245816,-500.0,0.00024657,9]
[334096636,1722766245824,-500.0,0.00024657,9]
[334096637,1722766245835,-500.0,0.00024657,9]
[334096638,1722766245844,-500.0,0.00024657,9]
[334096639,1722766245855,-500.0,0.00024657,9]
[334096640,1722766245866,-500.0,0.00024657,9]
[334096641,1722766245876,-500.0,0.00024657,9]
[334096642,1722766245886,-500.0,0.00024657,9]
[334096643,1722766245895,-500.0,0.00024657,9]
[334096644,1722766245905,-500.0,0.00024657,9]
[334096645,1722766245916,-500.0,0.00024657,9]
[334096646,1722766245926,-500.0,0.00024657,9]
[334096647,1722766245936,-500.0,0.00024657,9]
[334096648,1722766245946,-500.0,0.00024657,9]
[334096649,1722766245956,-500.0,0.00024657,9]
[334096650,1722766245967,-170.58650873,0.00024657,9]
[334096651,1722766245976,-500.0,0.00024657,9]
[334096652,1722766245985,-500.0,0.00024657,9]
[334096653,1722766245995,-500.0,0.00024657,9]
[334096654,1722766246005,-500.0,0.00024657,9]
[334096655,1722766246015,-500.0,0.00024657,9]
[334096656,1722766246025,-500.99013642,0.00024657,9]
[334096657,1722766246034,-500.0,0.00024657,9]
[334096658,1722766246044,-500.0,0.00024657,9]
[334096659,1722766246054,-500.0,0.00024657,9]
[334096660,1722766246063,-151.0,0.00024657,7]
[334096661,1722766246073,-500.0,0.00024657,9]
[334096662,1722766246083,-500.0,0.00024657,9]
[334096663,1722766246093,-500.0,0.00024657,9]
[334096664,1722766246102,-500.0,0.00024657,9]
[334096665,1722766246112,-151.0,0.00024657,7]
[334096666,1722766246122,-500.0,0.00024657,9]
[334096667,1722766246132,-500.0,0.00024657,9]
[334096668,1722766246142,-500.0,0.00024657,9]
[334096669,1722766246151,-500.0,0.00024657,9]
[334096670,1722766246161,-151.0,0.00024657,7]
[334096671,1722766246171,-500.0,0.00024657,9]
[334096672,1722766246181,-500.0,0.00024657,9]
[334096673,1722766246191,-500.0,0.00024657,9]
[334096674,1722766246200,-500.0,0.00024657,9]
[334096675,1722766246210,-108.91829946,0.00024657,7]
[334096676,1722766246287,-42.08170054,0.00024657,7]
[334096677,1722766246297,-500.0,0.00024657,9]
[334096678,1722766246306,-500.0,0.00024657,9]
[334096679,1722766246316,-500.0,0.00024657,9]
[334096680,1722766246326,-330.10728125,0.00024657,9]
[334096681,1722766246335,-151.0,0.00024657,7]
[334096682,1722766246345,-500.0,0.00024657,9]
[334096683,1722766246355,-549.92360559,0.00024657,9]
[334096684,1722766246364,-500.0,0.00024657,9]
[334096685,1722766246374,-554.39363053,0.00024657,9]
[334096686,1722766246384,-152.3446,0.00024657,7]
[334096687,1722766246394,-500.0,0.00024657,9]
[334096688,1722766246404,-383.11334829,0.00024657,9]
[334096689,1722766246414,-500.33560185,0.00024657,9]
[334096690,1722766246423,-500.0,0.00024657,9]
[334096691,1722766246434,-529.44288308,0.00024657,9]
[334096692,1722766246443,-500.0,0.00024657,9]
[334096693,1722766246453,-500.0,0.00024657,9]
[334096694,1722766246463,-500.0,0.00024657,9]
[334096695,1722766246473,-500.0,0.00024657,9]
[334096696,1722766246483,-508.22365814,0.00024657,9]
[334096697,1722766246493,-500.0,0.00024657,9]
[334096698,1722766246502,-500.0,0.00024657,9]
[334096699,1722766246512,-500.0,0.00024657,9]
[334096700,1722766246522,-627.13673316,0.00024657,9]
[334096701,1722766246531,-500.0,0.00024657,9]
[334096702,1722766246542,-520.48,0.00024657,9]
[334096703,1722766246551,-500.44807073,0.00024657,9]
[334096704,1722766246561,-520.48,0.00024657,9]
[334096706,1722766246571,-500.0,0.00024657,9]
[334096707,1722766246581,-520.48,0.00024657,9]
[334096708,1722766246591,-500.0,0.00024657,9]
[334096709,1722766246601,-520.48,0.00024657,9]
[334096710,1722766246611,-500.99566965,0.00024657,9]
[334096711,1722766246620,-520.48,0.00024657,9]
[334096712,1722766246629,-520.48,0.00024657,9]
[334096713,1722766246640,-520.48,0.00024657,9]
[334096714,1722766246650,-500.0,0.00024657,9]
[334096715,1722766246661,-261.33686379,0.00024657,9]
[334096716,1722766246726,-259.14313621,0.00024657,9]
[334096717,1722766246736,-46.91408829,0.00024657,9]
[334096718,1722766246753,-347.9736861,0.00024657,9]
[334096719,1722766246765,-105.48318805,0.00024657,9]
[334096720,1722766246774,-520.48,0.00024657,9]
[334096721,1722766246784,-262.55680953,0.00024657,9]
[334096722,1722766246798,-257.92319047,0.00024657,9]
[334096723,1722766246807,-472.65894239,0.00024657,9]
[334096724,1722766246819,-47.82105761,0.00024657,9]
[334096725,1722766246829,-520.48,0.00024657,9]
[334096726,1722766246839,-28.93894239,0.00024657,9]
[334096727,1722766246852,-466.74343647,0.00024657,9]
[334096728,1722766246862,-142.81138188,0.00024657,9]
[334096729,1722766246874,-377.66861812,0.00024657,9]
[334096730,1722766246884,-31.93843937,0.00024657,9]
[334096731,1722766246897,-468.06156063,0.00024657,9]
[334096732,1722766246907,-88.28819243,0.00024657,9]
[334096733,1722766246920,-432.19180757,0.00024657,9]
[334096734,1722766246930,-500.0,0.00024657,9]
[334096735,1722766246940,-407.81997798,0.00024657,9]
[334096736,1722766246953,-112.66002202,0.00024657,9]
[334096737,1722766246964,-500.0,0.00024657,9]
[334096738,1722766246973,-218.31990151,0.00024657,9]
[334096739,1722766246987,-302.16009849,0.00024657,9]
[334096740,1722766246998,-500.0,0.00024657,9]
[334096741,1722766247008,-520.48,0.00024657,9]
[334096742,1722766247018,-500.0,0.00024657,9]
[334096743,1722766247029,-500.0,0.00024657,9]
[334096744,1722766247039,-520.48,0.00024657,9]
[334096745,1722766247050,-500.0,0.00024657,9]
[334096746,1722766247060,-520.48,0.00024657,9]
[334096747,1722766247071,-500.0,0.00024657,9]
[334096748,1722766247082,-159.1111489,0.00024657,9]
[334096749,1722766247110,-280.407,0.00024657,9]
[334096750,1722766247139,-60.4818511,0.00024657,9]
[334096751,1722766247150,-520.48,0.00024657,9]
[334096752,1722766247160,-500.0,0.00024657,9]
[334096753,1722766247170,-500.0,0.00024657,9]
[334096754,1722766247180,-520.48,0.00024657,9]
[334096755,1722766247190,-500.0,0.00024657,9]
[334096756,1722766247199,-10.00066092,0.00024657,9]
[334096757,1722766247619,-489.99933908,0.00024657,9]
[334096758,1722766247630,-520.48,0.00024657,9]
[334096759,1722766247640,-500.0,0.00024657,9]
[334096760,1722766247649,-500.0,0.00024657,9]
[334096761,1722766247659,-500.0,0.00024657,9]
[334096762,1722766247673,-500.53614845,0.00024657,9]
[334096763,1722766247683,-503.92465833,0.00024657,9]
[334096764,1722766247695,-174.93153931,0.00024657,9]
[334096765,1722766247706,-520.48,0.00024657,9]
[334096766,1722766247718,-520.50044562,0.00024657,9]
[334096767,1722766247727,-500.0,0.00024657,9]
[334096768,1722766247738,-500.0,0.00024657,9]
[334096769,1722766247750,-500.0,0.00024657,9]
[334096770,1722766247760,-500.0,0.00024657,9]
[334096771,1722766247770,-500.0,0.00024657,9]
[334096772,1722766247781,-500.0,0.00024657,9]
[334096773,1722766247792,-500.0,0.00024657,9]
[334096774,1722766247802,-486.35412367,0.00024657,9]
[334096775,1722766247813,-500.48134711,0.00024657,9]
[334096776,1722766247824,-500.0,0.00024657,9]
[334096777,1722766247834,-500.0,0.00024657,9]
[334096778,1722766248025,-500.0,0.00024657,9]
[334096779,1722766248064,-500.0,0.00024657,9]
[334096780,1722766248074,-162.94500575,0.00024657,9]
[334096781,1722766248084,-500.0,0.00024657,9]
[334096782,1722766248095,-500.0,0.00024657,9]
[334096783,1722766248105,-500.0,0.00024657,9]
[334096784,1722766248115,-500.0,0.00024657,9]
[334096785,1722766248124,-151.0,0.00024657,7]
[334096786,1722766248134,-500.0,0.00024657,9]
[334096787,1722766248143,-500.0,0.00024657,9]
[334096788,1722766248153,-151.0,0.00024657,7]
[334096789,1722766248162,-500.0,0.00024657,9]
[334096790,1722766248172,-177.6417059,0.00024657,9]
[334096791,1722766248182,-500.0,0.00024657,9]
[334096792,1722766248192,-244.61264079,0.00024657,9]
[334096793,1722766248202,-500.0,0.00024657,9]
[334096794,1722766248211,-501.17708454,0.00024657,9]
[334096795,1722766248220,-500.0,0.00024657,9]
[334096796,1722766248230,-500.0,0.00024657,9]
[334096797,1722766248239,-501.59642972,0.00024657,9]
[334096798,1722766248249,-506.41679645,0.00024657,9]
[334096799,1722766248259,-500.0,0.00024657,9]
[334096800,1722766248269,-500.45725425,0.00024657,9]
[334096801,1722766248279,-500.0,0.00024657,9]
[334096802,1722766248289,-500.0,0.00024657,9]
[334096803,1722766248298,-537.43574547,0.00024657,9]
[334096804,1722766248308,-500.0,0.00024657,9]
[334096805,1722766248317,-500.0,0.00024657,9]
[334096806,1722766248327,-500.0,0.00024657,9]
[334096807,1722766248336,-500.0,0.00024657,9]
[334096808,1722766248346,-500.0,0.00024657,9]
[334096809,1722766248355,-500.0,0.00024657,9]
[334096810,1722766248365,-605.64353214,0.00024657,2]
[334096811,1722766248375,-500.0,0.00024657,9]
[334096812,1722766248384,-500.0,0.00024657,9]
[334096813,1722766248393,-495.4498851,0.00024657,9]
[334096814,1722766248403,-500.0,0.00024657,9]
[334096815,1722766248413,-500.0,0.00024657,9]
[334096816,1722766248422,-500.0,0.00024657,9]
[334096817,1722766248433,-500.0,0.00024657,9]
[334096818,1722766248444,-500.0,0.00024657,9]
[334096819,1722766248454,-444.61024987,0.00024657,9]
[334096820,1722766248463,-500.0,0.00024657,9]
[334096821,1722766248474,-417.59453534,0.00024657,9]
[334096822,1722766248483,-500.0,0.00024657,9]
[334096823,1722766248493,-501.7740917,0.00024657,9]
[334096824,1722766248502,-500.0,0.00024657,9]
[334096825,1722766248511,-602.18412233,0.00024657,9]
[334096826,1722766248521,-500.0,0.00024657,9]
[334096827,1722766248530,-500.0,0.00024657,9]
[334096828,1722766248540,-503.96216619,0.00024657,9]
[334096829,1722766248550,-500.0,0.00024657,9]
[334096830,1722766248559,-501.567745,0.00024657,9]
[334096831,1722766248570,-500.0,0.00024657,9]
[334096832,1722766248579,-500.0,0.00024657,9]
[334096833,1722766248589,-500.0,0.00024657,9]
[334096834,1722766248599,-566.12445328,0.00024657,9]
[334096835,1722766248609,-500.0,0.00024657,9]
[334096836,1722766248620,-501.39374559,0.00024657,9]
[334096837,1722766248631,-500.0,0.00024657,9]
[334096838,1722766248640,-500.0,0.00024657,9]
[334096839,1722766248650,-500.0,0.00024657,9]
[334096840,1722766248660,-502.01756974,0.00024657,9]
[334096841,1722766248671,-500.0,0.00024657,9]
[334096842,1722766248681,-500.0,0.00024657,9]
[334096843,1722766248691,-500.0,0.00024657,9]
[334096844,1722766248701,-503.14274427,0.00024657,9]
[334096845,1722766248711,-500.0,0.00024657,9]
[334096846,1722766248722,-225.93591022,0.00024657,9]
[334096847,1722766248731,-500.0,0.00024657,9]
[334096848,1722766248741,-500.0,0.00024657,9]
[334096849,1722766248753,-500.0,0.00024657,9]
[334096850,1722766248763,-500.0,0.00024657,9]
[334096851,1722766248772,-500.0,0.00024657,9]
[334096852,1722766248782,-500.0,0.00024657,9]
[334096853,1722766248791,-500.97263588,0.00024657,9]
[334096854,1722766248801,-309.43307968,0.00024657,9]
[334096855,1722766248811,-500.0,0.00024657,9]
[334096856,1722766248820,-500.0,0.00024657,9]
[334096857,1722766248830,-500.0,0.00024657,9]
[334096858,1722766248841,-500.0,0.00024657,9]
[334096859,1722766248851,-500.0,0.00024657,9]
[334096860,1722766248861,-500.0,0.00024657,9]
[334096861,1722766248871,-500.0,0.00024657,9]
[334096862,1722766248880,-500.0,0.00024657,9]
[334096863,1722766248890,-500.0,0.00024657,9]
[334096864,1722766248899,-166.44183468,0.00024657,9]
[334096865,1722766249137,-250.0,0.00024657,9]
[334096866,1722766249150,-83.55816532,0.00024657,9]
[334096867,1722766249159,-500.0,0.00024657,9]
[334096868,1722766249169,-500.0,0.00024657,9]
[334096869,1722766249183,-500.0,0.00024657,9]
[334096870,1722766249193,-500.0,0.00024657,9]
[334096871,1722766249202,-500.0,0.00024657,9]
[334096872,1722766249212,-500.0,0.00024657,9]
[334096873,1722766249222,-507.47683397,0.00024657,9]
[334096874,1722766249232,-187.80702583,0.00024657,9]
[334096875,1722766249241,-500.0,0.00024657,9]
[334096876,1722766249251,-500.0,0.00024657,9]
[334096877,1722766249260,-500.0,0.00024657,9]
[334096878,1722766249270,-500.0,0.00024657,9]
[334096879,1722766249279,-500.0,0.00024657,9]
[334096880,1722766249289,-500.0,0.00024657,9]
[334096881,1722766249299,-500.0,0.00024657,9]
[334096882,1722766249308,-500.0,0.00024657,9]
[334096883,1722766249318,-500.0,0.00024657,9]
[334096884,1722766249328,-500.0,0.00024657,9]
[334096885,1722766249338,-500.50972353,0.00024657,9]
[334096886,1722766249348,-318.78914757,0.00024657,9]
[334096887,1722766249358,-501.60277981,0.00024657,9]
[334096888,1722766249368,-500.0,0.00024657,9]
[334096889,1722766249378,-500.33344241,0.00024657,9]
[334096890,1722766249387,-500.0,0.00024657,9]
[334096891,1722766249397,-500.0,0.00024657,9]
[334096892,1722766249407,-500.98448573,0.00024657,9]
[334096893,1722766249416,-441.08232327,0.00024657,9]
[334096894,1722766249478,-58.91767673,0.00024657,9]
[334096895,1722766249487,-500.50064054,0.00024657,9]
[334096896,1722766249497,-500.0,0.00024657,9]
[334096897,1722766249507,-233.34982887,0.00024657,9]
[334096898,1722766249578,-266.65017113,0.00024657,9]
[334096899,1722766249588,-346.59769064,0.00024657,9]
[334096900,1722766249598,-266.98517361,0.00024657,9]
[334096901,1722766249608,-500.0,0.00024657,9]
[334096902,1722766249619,-133.00423563,0.00024657,9]
[334096903,1722766249634,-366.99576437,0.00024657,9]
[334096904,1722766249643,-82.15175369,0.00024657,9]
[334096905,1722766250039,-425.20974776,0.00024657,9]
[334096906,1722766250054,-270.63891525,0.00024657,9]
[334096907,1722766250073,-229.36108475,0.00024657,9]
[334096908,1722766250086,-259.9307926,0.00024657,9]
[334096909,1722766250112,-240.0692074,0.00024657,9]
[334096910,1722766250126,-104.9507936,0.00024657,9]
[334096911,1722766251833,-399.15818466,0.00024657,9]
[334096912,1722766251846,-460.7737939,0.00024657,9]
[334096913,1722766251860,-39.45969774,0.00024657,9]
[334096914,1722766251880,-460.54030226,0.00024657,9]
[334096915,1722766251893,-356.33823317,0.00024657,9]
[334096916,1722766251910,-143.66176683,0.00024657,9]
[334096917,1722766251923,-500.0,0.00024657,9]
[334096918,1722766251936,-23.82116987,0.00024657,9]
[334096919,1722766251954,-477.13395858,0.00024657,9]
[334096920,1722766251964,-500.0,0.00024657,9]
[334096921,1722766251974,-500.0,0.00024657,9]
[334096922,1722766251983,-102.58814487,0.00024657,9]
[334096923,1722766251996,-463.03795855,0.00024657,9]
[334096924,1722766252006,-500.0,0.00024657,9]
[334096925,1722766252016,-500.0,0.00024657,9]
[334096926,1722766252026,-500.0,0.00024657,9]
[334096927,1722766252035,-265.75216951,0.00024657,9]
[334096928,1722766252055,-234.24783049,0.00024657,9]
[334096929,1722766252065,-500.0,0.00024657,9]
[334096930,1722766252075,-501.89384716,0.00024657,9]
[334096931,1722766252084,-512.69391304,0.00024657,9]
[334096932,1722766252094,-500.0,0.00024657,9]
[334096933,1722766252103,-500.50270923,0.00024657,9]
[334096934,1722766252115,-501.71513223,0.00024657,9]
[334096935,1722766252125,-500.0,0.00024657,9]
[334096936,1722766252135,-500.0,0.00024657,9]
[334096937,1722766252144,-500.0,0.00024657,9]
[334096938,1722766252153,-500.0,0.00024657,9]
[334096939,1722766252162,-503.35289962,0.00024657,9]
[334096940,1722766252172,-500.49190225,0.00024657,9]
[334096941,1722766252181,-500.0,0.00024657,9]
[334096942,1722766252191,-501.41109372,0.00024657,9]
[334096943,1722766252200,-500.0,0.00024657,9]
[334096944,1722766252210,-500.0,0.00024657,9]
[334096945,1722766252219,-500.0,0.00024657,9]
[334096946,1722766252228,-189.01870742,0.00024657,9]
[334096947,1722766252237,-500.0,0.00024657,9]
[334096948,1722766252247,-500.0,0.00024657,9]
[334096949,1722766252257,-500.26449381,0.00024657,9]
[334096950,1722766252266,-444.70647826,0.00024657,9]
[334096951,1722766252275,-400.0,0.00024657,9]
[334096952,1722766252285,-400.0,0.00024657,9]
[334096953,1722766252294,-400.0,0.00024657,9]
[334096954,1722766252304,-405.0,0.00024657,9]
[334096955,1722766252314,-500.0,0.00024657,9]
[334096956,1722766252324,-500.0,0.00024657,9]
[334096957,1722766252746,-500.0,0.00024657,9]
[334096958,1722766252769,-501.21962028,0.00024657,9]
[334096959,1722766252797,-500.47995493,0.00024657,9]
[334096960,1722766252811,-506.74585545,0.00024657,9]
[334096961,1722766252820,-500.0,0.00024657,9]
[334096962,1722766252830,-500.0,0.00024657,9]
[334096963,1722766252839,-500.36826695,0.00024657,9]
[334096964,1722766252849,-500.0,0.00024657,9]
[334096965,1722766252858,-500.97903432,0.00024657,9]
[334096966,1722766252870,-328.18897171,0.00024657,9]
[334096967,1722766252879,-500.0,0.00024657,9]
[334096968,1722766252888,-556.01796162,0.00024657,9]
[334096969,1722766252898,-500.0,0.00024657,9]
[334096970,1722766252907,-500.0,0.00024657,9]
[334096971,1722766252916,-507.22838899,0.00024657,9]
[334096972,1722766252926,-361.09248595,0.00024657,9]
[334096973,1722766252935,-508.17133873,0.00024657,9]
[334096974,1722766252945,-500.0,0.00024657,9]
[334096975,1722766252954,-500.0,0.00024657,9]
[334096976,1722766252963,-500.0,0.00024657,9]
[334096977,1722766252973,-500.0,0.00024657,9]
[334096978,1722766252983,-500.0,0.00024657,9]
[334096979,1722766252992,-500.0,0.00024657,9]
[334096980,1722766253001,-507.4306706,0.00024657,9]
[334096981,1722766253011,-376.99930865,0.00024657,9]
[334096982,1722766253020,-500.0,0.00024657,9]
[334096983,1722766253030,-500.0,0.00024657,9]
[334096984,1722766253039,-500.0,0.00024657,9]
[334096985,1722766253049,-500.0,0.00024657,9]
[334096986,1722766253059,-500.0,0.00024657,9]
[334096987,1722766253069,-500.0,0.00024657,9]
[334096988,1722766253078,-500.0,0.00024657,9]
[334096989,1722766253088,-500.0,0.00024657,9]
[334096990,1722766253097,-500.0,0.00024657,9]
[334096991,1722766253106,-500.0,0.00024657,9]
[334096992,1722766253117,-500.0,0.00024657,9]
[334096993,1722766253126,-500.0,0.00024657,9]
[334096994,1722766253136,-500.0,0.00024657,9]
[334096995,1722766253145,-500.0,0.00024657,9]
[334096996,1722766253155,-500.0,0.00024657,9]
[334096997,1722766253164,-501.88927895,0.00024657,9]
[334096998,1722766253174,-500.0,0.00024657,9]
[334096999,1722766253184,-500.0,0.00024657,9]
[334097000,1722766253194,-500.0,0.00024657,9]
[334097001,1722766253204,-500.0,0.00024657,9]
[334097002,1722766253213,-500.0,0.00024657,9]
[334097003,1722766253223,-500.0,0.00024657,9]
[334097004,1722766253233,-500.0,0.00024657,9]
[334097005,1722766253242,-546.14247176,0.00024657,9]
[334097006,1722766253252,-500.0,0.00024657,9]
[334097007,1722766253261,-500.0,0.00024657,9]
[334097008,1722766253271,-500.0,0.00024657,9]
[334097009,1722766253281,-500.0,0.00024657,9]
[334097010,1722766253290,-368.91028307,0.00024657,9]
[334097011,1722766253299,-151.0,0.00024657,7]
[334097012,1722766253309,-151.0,0.00024657,7]
[334097013,1722766253318,-151.0,0.00024657,7]
[334097014,1722766253327,-500.0,0.00024657,9]
[334097015,1722766253337,-500.0,0.00024657,9]
[334097016,1722766253346,-2000.0,0.00024657,9]
[334097017,1722766253355,-501.98315055,0.00024657,9]
[334097018,1722766253367,-373.42880696,0.00024657,9]
[334097019,1722766253376,-2000.0,0.00024657,9]
[334097020,1722766253385,-335.86170857,0.00024657,9]
[334097021,1722766253395,-2000.0,0.00024657,9]
[334097022,1722766253404,-2005.61159756,0.00024657,9]
[334097023,1722766253414,-193.90120878,0.00024657,9]
[334097024,1722766253423,-500.0,0.00024657,9]
[334097025,1722766253434,-589.47185899,0.00024657,9]
[334097026,1722766253444,-500.0,0.00024657,9]
[334097027,1722766253454,-500.0,0.00024657,9]
[334097028,1722766253463,-502.45373859,0.00024657,9]
[334097029,1722766253473,-500.0,0.00024657,9]
[334097030,1722766253483,-500.0,0.00024657,9]
[334097031,1722766253492,-500.0,0.00024657,9]
[334097032,1722766253501,-500.0,0.00024657,9]
[334097033,1722766253511,-500.0,0.00024657,9]
[334097034,1722766253520,-500.0,0.00024657,9]
[334097035,1722766253530,-500.0,0.00024657,9]
[334097036,1722766253539,-500.0,0.00024657,9]
[334097037,1722766253548,-500.0,0.00024657,9]
[334097038,1722766253557,-500.98537548,0.00024657,9]
[334097039,1722766253567,-500.0,0.00024657,9]
[334097040,1722766253576,-500.0,0.00024657,9]
[334097041,1722766253586,-500.0,0.00024657,9]
[334097042,1722766253595,-500.0,0.00024657,9]
[334097043,1722766253605,-500.0,0.00024657,9]
[334097044,1722766253615,-500.0,0.00024657,9]
[334097045,1722766253624,-500.0,0.00024657,9]
[334097046,1722766253633,-500.0,0.00024657,9]
[334097047,1722766253642,-508.73454128,0.00024657,9]
[334097048,1722766253651,-500.0,0.00024657,9]
[334097049,1722766253660,-500.0,0.00024657,9]
[334097050,1722766253673,-500.0,0.00024657,9]
[334097051,1722766253682,-500.0,0.00024657,9]
[334097052,1722766253691,-500.0,0.00024657,9]
[334097053,1722766253700,-500.0,0.00024657,9]
[334097054,1722766253710,-500.0,0.00024657,9]
[334097055,1722766253719,-249.08480373,0.00024657,9]
[334097056,1722766253730,-429.19796928,0.00024657,9]
[334097057,1722766253739,-500.29489459,0.00024657,9]
[334097058,1722766253751,-500.0,0.00024657,9]
[334097059,1722766253761,-500.0,0.00024657,9]
[334097060,1722766253770,-500.0,0.00024657,9]
[334097061,1722766253779,-605.55915471,0.00024657,9]
[334097062,1722766253788,-500.0,0.00024657,9]
[334097063,1722766253797,-500.6969238,0.00024657,9]
[334097064,1722766253807,-151.0,0.00024657,7]
[334097065,1722766253816,-151.0,0.00024657,7]
[334097066,1722766253825,-151.0,0.00024657,7]
[334097067,1722766253835,-151.0,0.00024657,7]
[334097068,1722766253844,-151.0,0.00024657,7]
[334097069,1722766253853,-151.0,0.00024657,7]
[334097070,1722766253862,-500.0,0.00024657,9]
[334097071,1722766253872,-500.0,0.00024657,9]
[334097072,1722766253882,-500.0,0.00024657,9]
[334097073,1722766253891,-500.0,0.00024657,9]
[334097074,1722766253900,-500.0,0.00024657,9]
[334097075,1722766253910,-500.0,0.00024657,9]
[334097076,1722766253920,-500.0,0.00024657,9]
[334097077,1722766253929,-500.0,0.00024657,9]
[334097078,1722766253939,-500.0,0.00024657,9]
[334097079,1722766253948,-500.0,0.00024657,9]
[334097080,1722766253957,-500.0,0.00024657,9]
[334097081,1722766253967,-500.0,0.00024657,9]
[334097082,1722766253976,-500.50562533,0.00024657,9]
[334097083,1722766253986,-500.0,0.00024657,9]
[334097084,1722766253995,-500.0,0.00024657,9]
[334097085,1722766254004,-500.0,0.00024657,9]
[334097086,1722766254013,-500.0,0.00024657,9]
[334097087,1722766254022,-500.0,0.00024657,9]
[334097088,1722766254031,-500.0,0.00024657,9]
[334097089,1722766254040,-500.0,0.00024657,9]
[334097090,1722766254050,-500.0,0.00024657,9]
[334097091,1722766254059,-609.95594139,0.00024657,9]
[334097092,1722766254068,-500.0,0.00024657,9]
[334097093,1722766254078,-500.0,0.00024657,9]
[334097094,1722766254086,-500.0,0.00024657,9]
[334097095,1722766254096,-500.0,0.00024657,9]
[334097096,1722766254105,-500.0,0.00024657,9]
[334097097,1722766254115,-500.0,0.00024657,9]
[334097098,1722766254124,-500.0,0.00024657,9]
[334097099,1722766254133,-627.00797262,0.00024657,9]
[334097100,1722766254143,-500.0,0.00024657,9]
[334097101,1722766254152,-500.0,0.00024657,9]
[334097102,1722766254161,-500.0,0.00024657,9]
[334097103,1722766254171,-181.31273614,0.00024657,9]
[334097104,1722766254180,-500.0,0.00024657,9]
[334097105,1722766254190,-500.0,0.00024657,9]
[334097106,1722766254200,-500.94686799,0.00024657,9]
[334097107,1722766254209,-500.0,0.00024657,9]
[334097108,1722766254218,-500.26700344,0.00024657,9]
[334097109,1722766254226,-500.0,0.00024657,9]
[334097110,1722766254235,-500.0,0.00024657,9]
[334097111,1722766254244,-500.0,0.00024657,9]
[334097112,1722766254253,-500.0,0.00024657,9]
[334097113,1722766254261,-500.0,0.00024657,9]
[334097114,1722766254270,-500.0,0.00024657,9]
[334097115,1722766254278,-500.0,0.00024657,9]
[334097116,1722766254288,-500.0,0.00024657,9]
[334097117,1722766254297,-500.47105767,0.00024657,9]